bitfinex-derivatives/quotes_ETHF0:USTF0_20250912
["timestamp","ask_amount","ask_price","bid_price","bid_amount"]
[1757704948271,0.00326971,4627.6,4627.5,0.8067]
[1757704950782,0.00326971,4627.6,4627.5,4.8067]
[1757704951281,0.00326971,4627.6,4627.5,4.60031736]
[1757704951477,0.00326971,4627.6,4627.5,4.66041736]
[1757704955479,0.18649163,4627.6,4627.5,4.66041736]
[1757704956578,0.47479163,4627.6,4627.5,4.66041736]
[1757704956781,0.67809163,4627.6,4627.5,4.60031736]
[1757704957181,0.67809163,4627.6,4627.5,0.60031736]
[1757704957686,0.67808612,4627.6,4627.5,0.60031736]
[1757704957878,0.49486971,4627.6,4627.5,0.60031736]
[1757704958284,0.69686971,4627.6,4627.5,0.60031736]
[1757704958484,0.69686971,4627.6,4627.5,0.1896]
[1757704958686,0.6936,4626.7,4626.6,0.6831]
[1757704959190,0.89584098,4626.7,4626.6,0.6831]
[1757704959689,1.53484651,4626.7,4626.6,0.6831]
[1757704962784,0.84124651,4626.7,4626.6,0.6831]
[1757704962984,0.84124651,4626.7,4626.6,4.6831]
[1757704963194,0.63900553,4626.7,4626.6,4.6831]
[1757704965889,0.93320553,4626.7,4626.6,0.6831]
[1757704966089,1.33550553,4626.7,4626.6,0.6831]
[1757704967187,1.33550553,4626.7,4626.6,0.3993]
[1757704967990,0.6965,4626.7,4626.6,0.3993]
[1757704969899,0.4972,4626.7,4626.6,0.7076]
[1757704970190,0.6965,4626.7,4626.6,0.2063]
[1757704970396,0.4972,4626.7,4626.6,0.7042]
[1757704972201,0.2942,4626.7,4626.6,0.7042]
[1757704972400,0.0648,4626.9,4626.7,0.3083]
[1757704972401,0.359,4626.9,4626.7,0.3083]
[1757704972593,1.1255624,4626.8,4626.7,0.7042]
[1757704972793,1.3285624,4626.8,4626.7,0.7042]
[1757704973094,0.68963266,4626.8,4626.7,0.7042]
[1757704973304,0.88893266,4626.8,4626.7,0.7042]
[1757704976203,0.6965,4626.8,4626.7,0.7042]
[1757704976393,0.6965,4626.8,4626.7,0.3959]
[1757704977302,0.6965,4626.8,4626.7,0.6869]
[1757704977600,0.6965,4626.8,4626.7,0.3959]
[1757704978301,0.6965,4626.8,4626.7,0.6869]
[1757704979596,0.0648,4626.9,4626.8,0.291]
[1757704979800,0.0648,4626.9,4626.8,0.6806]
[1757704980004,0.0648,4626.9,4626.8,4.6806]
[1757704983702,0.3699,4626.9,4626.8,4.6806]
[1757704984007,0.5591,4626.9,4626.8,0.6806]
[1757704985000,0.3699,4626.9,4626.8,0.6806]
[1757704985306,0.3051,4627.4,4626.9,0.291]
[1757704985601,1.03090731,4627.3,4627.2,0.6806]
[1757704986009,1.33600731,4627.3,4627.2,0.6806]
[1757704986503,1.33600731,4627.3,4627.2,0.3896]
[1757704986699,0.1169,4627.0,4626.8,0.291]
[1757704987006,0.1169,4627.0,4626.9,0.192]
[1757704987306,0.5049,4627.0,4626.9,0.192]
[1757704987497,0.81,4627.0,4626.9,0.3896]
[1757704987700,0.81,4627.0,4626.9,0.6806]
[1757704988101,1.45299125,4627.0,4626.9,0.6806]
[1757704991411,1.45299125,4627.0,4626.9,0.3896]
[1757704991712,0.388,4626.6,4626.5,0.701]
[1757704991899,0.6931,4626.6,4626.5,0.8986]
[1757704992799,0.4943,4626.6,4626.5,0.8986]
[1757704993205,0.1169,4627.0,4626.5,0.8986]
[1757704993406,0.5049,4627.0,4626.9,0.192]
[1757704993612,1.14786757,4627.0,4626.9,0.192]
[1757704994009,1.45296757,4627.0,4626.9,0.192]
[1757704995708,0.81,4627.0,4626.9,0.192]
[1757704995904,1.45296586,4627.0,4626.9,0.192]
[1757704996412,1.45296586,4627.0,4626.9,0.6806]
[1757704996607,1.33606586,4627.0,4626.9,0.6806]
[1757704996806,0.64296586,4627.0,4626.9,0.6806]
[1757704997007,0.94806586,4627.0,4626.9,0.6806]
[1757704997314,1.45296586,4627.0,4626.9,0.6806]
[1757704998008,0.81,4627.0,4626.9,0.6806]
[1757704998807,0.81,4627.0,4626.9,0.192]
[1757704999213,0.81,4627.0,4626.9,0.483]
[1757704999515,0.81,4627.0,4626.9,0.6806]
[1757705001508,0.81,4627.0,4626.9,0.3896]
[1757705005718,0.81,4627.0,4626.9,0.192]
[1757705007417,0.81,4627.0,4626.0,0.2467]
[1757705007616,0.2037,4626.3,4626.2,0.6909]
[1757705007917,0.3117,4626.3,4626.2,0.6909]
[1757705008118,0.3117,4626.9,4626.2,0.3989]
[1757705008424,0.7196,4626.9,4626.8,0.2019]
[1757705008618,0.7196,4626.9,4626.8,0.4939]
[1757705009118,0.7196,4626.9,4626.8,0.6909]
[1757705011217,0.7196,4626.9,4626.8,0.3989]
[1757705011522,0.7196,4626.9,4626.1,0.292]
[1757705012021,0.5154,4626.2,4626.1,0.6909]
[1757705014426,0.7196,4626.2,4626.1,0.3989]
[1757705015024,0.7196,4626.2,4626.1,0.6909]
[1757705015614,0.3117,4625.7,4625.1,0.292]
[1757705015828,0.7196,4625.7,4625.6,0.2019]
[1757705016625,0.7196,4625.7,4625.6,0.6909]
[1757705016823,0.7196,4625.7,4625.6,0.3989]
[1757705017028,0.7196,4625.7,4625.6,0.6909]
[1757705019432,0.3117,4625.7,4625.6,0.6909]
[1757705019922,0.5154,4625.7,4625.6,0.6909]
[1757705020837,0.7196,4625.7,4625.6,0.6909]
[1757705028548,0.0648,4625.9,4625.8,0.3912]
[1757705028843,0.3609,4625.9,4625.8,0.6873]
[1757705029243,0.5667,4625.9,4625.8,0.6873]
[1757705029947,0.5019,4625.9,4625.8,0.6873]
[1757705030639,0.7001,4625.9,4625.8,0.6873]
[1757705030843,0.7001,4625.9,4625.8,0.3912]
[1757705031143,0.7001,4625.9,4625.8,0.6873]
[1757705036742,0.7001,4625.9,4625.4,0.3082]
[1757705036946,0.8201,4625.5,4625.4,0.1968]
[1757705037144,0.8201,4625.5,4625.4,0.4051]
[1757705037342,0.8201,4625.5,4625.4,0.7133]
[1757705038149,0.7017,4625.5,4625.4,0.7133]
[1757705042348,0.7017,4625.5,4625.4,1.10223]
[1757705042650,0.3186,4626.0,4625.9,0.7133]
[1757705042950,0.5271,4626.0,4625.9,0.7133]
[1757705043150,0.8236,4626.0,4625.9,0.7133]
[1757705047052,0.8236,4626.0,4625.9,0.4051]
[1757705047253,0.4052,4625.4,4625.3,0.38894]
[1757705047555,0.7017,4625.4,4625.3,0.58574]
[1757705047755,0.7017,4625.4,4625.3,0.1968]
[1757705049448,0.7017,4625.4,4625.1,0.218]
[1757705049958,0.7017,4625.4,4625.3,0.1968]
[1757705050451,0.7017,4625.4,4625.1,0.218]
[1757705051146,0.4932,4625.3,4625.2,0.1968]
[1757705051353,0.7017,4625.3,4625.2,0.1968]
[1757705051654,0.7017,4625.3,4625.2,1.10224]
[1757705053353,0.7017,4625.3,4625.2,0.7133]
[1757705055352,0.7017,4625.3,4625.2,0.4051]
[1757705056062,0.7017,4625.3,4625.2,0.7133]
[1757705057164,0.7017,4625.3,4625.2,0.4051]
[1757705058461,0.7017,4625.3,4625.2,1.10224]
[1757705064267,0.7017,4625.3,4625.2,0.7133]
[1757705065268,0.7017,4625.3,4625.2,0.1968]
[1757705066971,0.7017,4625.3,4625.2,0.4051]
[1757705067262,0.7017,4625.3,4625.2,0.1968]
[1757705067674,0.1258,4625.0,4624.6,0.3036]
[1757705067868,0.706,4624.7,4624.6,0.697]
[1757705068166,0.1258,4625.0,4624.6,1.30399]
[1757705068370,0.3067,4624.9,4624.8,0.3934]
[1757705068565,0.3067,4624.9,4624.8,0.697]
[1757705068774,0.0648,4625.5,4625.4,0.3934]
[1757705068970,0.0648,4625.5,4625.4,0.915]
[1757705069160,0.3715,4625.5,4625.4,0.915]
[1757705069863,0.0648,4625.5,4625.4,1.30393]
[1757705070469,0.0648,4625.5,4625.4,0.915]
[1757705071072,0.3715,4625.5,4625.4,0.915]
[1757705074068,0.0648,4625.5,4625.4,0.915]
[1757705074268,0.0648,4625.5,4625.4,1.30393]
[1757705078179,0.5766,4625.5,4625.4,1.30393]
[1757705078772,0.3715,4625.5,4625.4,1.30393]
[1757705080277,0.0648,4625.5,4625.4,1.30393]
[1757705081278,0.3715,4625.5,4625.4,1.30393]
[1757705081479,0.0648,4625.5,4625.4,1.30393]
[1757705082580,0.3067,4626.3,4626.2,0.697]
[1757705082778,0.3067,4626.3,4626.2,0.915]
[1757705083678,0.5118,4626.3,4626.2,0.915]
[1757705086877,0.0648,4627.2,4626.2,1.30386]
[1757705087183,0.293,4626.9,4626.3,0.3059]
[1757705087371,0.692,4626.9,4626.8,0.1938]
[1757705087573,0.692,4626.9,4626.3,0.3059]
[1757705089577,0.692,4626.9,4626.2,0.218]
[1757705089578,0.692,4626.9,4626.8,0.1938]
[1757705090577,0.692,4626.9,4626.2,0.218]
[1757705090778,0.692,4626.9,4626.3,0.3059]
[1757705091084,0.692,4626.9,4626.8,0.1938]
[1757705092178,0.692,4626.9,4626.5,0.3059]
[1757705093088,0.692,4626.9,4626.2,0.218]
[1757705093280,0.293,4626.8,4626.2,0.5239]
[1757705093485,0.692,4626.3,4626.2,0.9267]
[1757705098892,0.8154,4626.0,4625.9,0.2068]
[1757705099081,0.8154,4626.0,4625.9,0.4248]
[1757705099282,0.8154,4626.0,4625.9,0.9169]
[1757705099483,0.8154,4626.0,4625.9,1.30578]
[1757705100385,0.6976,4626.0,4625.9,1.30578]
[1757705100596,0.2836,4626.4,4626.0,0.38887]
[1757705100792,0.6976,4626.4,4626.3,0.6989]
[1757705105497,0.6976,4626.4,4626.3,0.2068]
[1757705105898,0.6976,4626.4,4626.0,0.2834]
[1757705106497,0.6976,4626.4,4626.3,0.6989]
[1757705106794,0.2836,4626.4,4626.3,0.6989]
[1757705107497,0.4886,4626.4,4626.3,0.6989]
[1757705107995,0.4886,4626.4,4626.3,1.08775]
[1757705108199,0.1178,4628.0,4627.2,0.4155]
[1757705108402,0.205,4627.4,4627.3,0.6989]
[1757705111203,0.2836,4628.2,4627.3,0.4155]
[1757705111500,0.2836,4628.2,4628.0,0.6989]
[1757705111501,0.6976,4628.1,4628.0,0.6989]
[1757705111901,0.6976,4628.1,4628.0,0.2834]
[1757705112903,0.6976,4628.1,4627.6,0.2834]
[1757705113098,0.414,4628.0,4627.9,0.2068]
[1757705113295,0.6976,4628.0,4627.9,0.4902]
[1757705115097,0.17,4628.9,4627.9,0.4155]
[1757705115292,0.209,4628.7,4628.6,0.4155]
[1757705115593,0.17,4628.9,4628.7,0.2834]
[1757705115798,0.17,4628.9,4628.8,0.6989]
[1757705116000,0.375,4628.9,4628.8,0.6989]
[1757705118000,0.6866,4628.9,4628.8,0.6989]
[1757705118603,0.8895,4628.9,4628.8,0.6989]
[1757705122698,0.8895,4628.9,4628.7,0.218]
[1757705122896,0.5779,4628.9,4628.7,0.218]
[1757705123110,0.2017,4628.8,4628.7,0.6361]
[1757705123501,0.2017,4628.8,4628.7,0.9194]
[1757705125509,0.17,4628.9,4628.7,0.6361]
[1757705125712,0.17,4628.9,4628.8,0.7014]
[1757705126510,0.3717,4628.9,4628.8,0.7014]
[1757705127599,0.17,4628.9,4628.8,0.7014]
[1757705128810,0.3745,4628.9,4628.8,0.7014]
[1757705130315,0.8912,4628.9,4628.8,0.7014]
[1757705131515,0.17,4628.9,4628.8,0.7014]
[1757705131815,0.3745,4628.9,4628.8,0.7014]
[1757705133914,0.17,4628.9,4628.8,0.7014]
[1757705134306,0.3745,4628.9,4628.8,0.7014]
[1757705140718,0.6866,4628.9,4628.8,0.7014]
[1757705141218,0.8912,4628.9,4628.8,0.7014]
[1757705141524,0.8912,4628.9,4628.8,0.4921]
[1757705143423,0.17,4628.9,4628.8,0.7003]
[1757705145639,0.3745,4628.9,4628.8,0.7003]
[1757705146729,0.6866,4628.9,4628.8,0.7003]
[1757705146933,0.8912,4628.9,4628.8,0.7003]
[1757705147220,1.10724,4628.9,4628.7,0.218]
[1757705147430,0.8912,4628.9,4628.2,0.3126]
[1757705147620,0.8912,4628.9,4628.2,0.3826]
[1757705147822,0.6935,4628.3,4628.2,0.5911]
[1757705149425,4.90956,4628.3,4627.6,0.3126]
[1757705149624,0.63533736,4628.2,4627.3,0.218]
[1757705149826,0.6935,4627.4,4627.3,0.7391]
[1757705150331,0.6935,4627.4,4627.3,0.218]
[1757705150526,0.90961,4627.4,4627.3,0.5306]
[1757705150724,0.6935,4627.4,4627.3,0.218]
[1757705151829,0.6935,4627.4,4627.3,0.5306]
[1757705152928,0.6935,4627.4,4627.3,0.218]
[1757705153328,4.6935,4627.4,4627.3,0.218]
[1757705153527,4.6935,4627.4,4626.9,0.3126]
[1757705153729,0.6935,4627.4,4626.7,0.3126]
[1757705156125,0.90962,4627.4,4626.7,0.3126]
[1757705156437,0.21612,4627.3,4626.7,0.3126]
[1757705156627,0.3862,4626.8,4626.5,0.3126]
[1757705156827,0.3952,4626.6,4626.5,0.3126]
[1757705157023,0.687,4626.6,4626.5,0.3126]
[1757705158034,0.687,4626.6,4626.5,0.5064]
[1757705158635,0.687,4626.6,4626.5,0.8255]
[1757705159734,0.687,4626.1,4625.2,0.38893]
[1757705159929,0.1181,4626.5,4625.5,0.3146]
[1757705159930,0.687,4625.6,4625.5,0.3146]
[1757705160132,0.687,4625.6,4625.5,0.1938]
[1757705160330,0.687,4625.6,4625.5,0.6986]
[1757705160830,0.0592,4625.5,4625.1,0.2868]
[1757705161028,0.2918,4625.1,4625.0,0.218]
[1757705161234,0.687,4625.1,4625.0,0.218]
[1757705161536,0.687,4625.9,4625.8,0.4806]
[1757705161738,0.687,4625.9,4625.6,0.2868]
[1757705161933,0.2918,4627.4,4626.6,0.2868]
[1757705162138,0.2918,4627.8,4627.3,0.6814]
[1757705162440,0.0592,4628.5,4627.6,0.6814]
[1757705162441,1.3182816,4627.7,4627.6,0.6814]
[1757705162633,0.687,4627.7,4627.6,0.6814]
[1757705166138,0.687,4627.7,4627.2,0.218]
[1757705166338,0.687,4627.7,4627.3,0.2868]
[1757705166539,0.1181,4628.0,4627.3,0.2868]
[1757705166540,0.687,4627.4,4627.3,0.4806]
[1757705166741,0.687,4627.4,4627.3,0.6814]
[1757705166933,0.3952,4627.4,4627.3,0.6814]
[1757705167236,0.687,4627.4,4627.3,0.6814]
[1757705170344,0.687,4627.4,4627.3,0.4806]
[1757705173649,0.3952,4627.4,4627.3,0.6814]
[1757705174755,0.687,4627.4,4627.3,0.6814]
[1757705175140,0.3952,4627.4,4627.3,0.6814]
[1757705175346,0.1906,4627.4,4627.3,0.6814]
[1757705176159,0.3952,4627.4,4627.3,0.6814]
[1757705176359,0.687,4627.4,4627.3,0.6814]
[1757705177057,0.1906,4627.4,4627.3,0.6814]
[1757705177257,0.0648,4627.8,4627.0,0.1183]
[1757705177258,0.2554,4627.8,4627.7,0.6814]
[1757705177458,0.2918,4628.5,4627.7,0.6814]
[1757705177658,0.2918,4628.5,4627.5,0.1183]
[1757705177659,0.63571508,4628.4,4627.8,0.2868]
[1757705177856,0.687,4628.4,4628.3,0.4806]
[1757705178164,1.32268314,4628.4,4628.3,0.4806]
[1757705178358,1.32268314,4628.4,4628.3,0.6814]
[1757705178560,0.2918,4628.8,4628.3,0.3946]
[1757705178761,0.1906,4628.6,4628.5,0.5129]
[1757705178959,0.1906,4628.6,4628.5,0.7997]
[1757705179763,0.17,4628.9,4628.5,0.7997]
[1757705179764,0.17,4628.9,4628.8,0.3946]
[1757705180067,0.17,4628.9,4628.8,0.6814]
[1757705180068,0.2348,4628.9,4628.8,0.6814]
[1757705182956,0.9218,4628.9,4628.5,0.2868]
[1757705183162,0.857,4628.9,4628.4,0.218]
[1757705183472,0.1906,4628.8,4628.7,0.1938]
[1757705183664,0.687,4628.8,4628.7,0.4806]
[1757705183865,0.687,4628.8,4628.4,0.218]
[1757705184069,0.3952,4628.8,4628.4,0.5048]
[1757705184268,0.3952,4628.5,4628.4,0.5048]
[1757705184571,0.687,4628.5,4628.4,0.6986]
[1757705184768,0.687,4628.5,4628.4,0.8994]
[1757705184967,0.3952,4628.5,4628.4,0.8994]
[1757705186468,0.1906,4628.5,4628.4,0.8994]
[1757705188580,0.3855,4628.5,4628.4,0.9262]
[1757705189065,0.6824,4628.5,4628.4,0.9262]
[1757705189259,0.0648,4628.8,4628.5,0.4287]
[1757705189463,0.0648,4628.8,4628.7,0.7164]
[1757705189773,0.17,4628.9,4628.7,0.7164]
[1757705189963,0.17,4628.9,4628.8,0.7164]
[1757705190564,0.3608,4628.9,4628.8,0.7164]
[1757705190770,0.17,4628.9,4628.8,0.7164]
[1757705191270,0.3608,4628.9,4628.8,0.7164]
[1757705191669,0.17,4628.9,4628.8,0.7164]
[1757705192266,0.3608,4628.9,4628.8,0.7164]
[1757705192769,0.17,4628.9,4628.8,0.7164]
[1757705198079,0.3608,4628.9,4628.8,0.7164]
[1757705198672,0.3608,4628.9,4628.8,0.9344]
[1757705199781,0.17,4628.9,4628.8,0.9344]
[1757705204184,0.3608,4628.9,4628.8,0.9344]
[1757705204781,5.06844,4628.9,4628.5,0.1151]
[1757705204980,0.8524,4628.9,4628.5,0.3136]
[1757705205185,0.3855,4628.6,4628.5,0.3136]
[1757705205481,0.6824,4628.6,4628.5,0.52]
[1757705205879,0.3855,4628.6,4628.5,0.8507]
[1757705206070,0.6795,4628.6,4628.5,0.52]
[1757705206274,0.6795,4628.6,4628.1,0.2846]
[1757705206470,0.6795,4628.6,4628.0,0.1183]
[1757705206471,0.294,4628.4,4627.6,0.2846]
[1757705206685,0.6795,4627.7,4627.6,0.4929]
[1757705207277,0.3855,4627.7,4627.6,0.702]
[1757705207477,0.6795,4627.7,4627.6,0.702]
[1757705208184,0.6795,4627.7,4627.1,0.2846]
[1757705208684,0.294,4628.2,4627.6,0.702]
[1757705208985,0.63718851,4628.1,4628.0,0.539]
[1757705209392,0.1913,4628.2,4628.1,0.2846]
[1757705209580,0.1913,4628.2,4628.1,0.702]
[1757705209780,0.3613,4628.9,4628.8,0.702]
[1757705209981,0.99822598,4628.9,4628.8,0.702]
[1757705210584,0.17,4628.9,4628.8,0.702]
[1757705214293,0.3613,4628.9,4628.8,0.702]
[1757705215392,0.17,4628.9,4628.8,0.702]
[1757705218001,0.17,4628.9,4628.8,4.91804]
[1757705218782,0.17,4628.9,4628.8,4.702]
[1757705219493,0.17,4628.9,4628.8,4.92]
[1757705220487,0.17,4628.9,4628.8,0.92]
[1757705224401,0.8559,4628.9,4628.8,0.92]
[1757705224596,0.8559,4628.9,4628.8,0.2846]
[1757705224894,0.8559,4628.9,4628.8,0.4838]
[1757705225784,0.5679,4628.9,4628.8,0.7011]
[1757705225988,0.17,4628.9,4628.8,0.7011]
[1757705228293,0.8559,4628.9,4628.8,0.7011]
[1757705228497,0.8559,4628.9,4628.6,0.2969]
[1757705228695,0.288,4628.8,4628.5,0.3436]
[1757705228899,0.6859,4628.6,4628.5,0.7478]
[1757705229491,0.6859,4628.6,4628.5,1.0447]
[1757705229893,0.17,4628.9,4628.6,0.2969]
[1757705230099,0.3691,4628.9,4628.8,0.7011]
[1757705230299,0.5679,4628.9,4628.8,0.7011]
[1757705230699,0.8559,4628.9,4628.8,0.7011]
[1757705231996,0.8559,4628.9,4628.8,0.4961]
[1757705232597,0.17,4628.9,4628.8,0.7011]
[1757705232792,0.8559,4628.9,4628.8,0.7011]
[1757705232994,0.8559,4628.9,4628.4,0.218]
[1757705233204,0.8559,4628.9,4628.5,0.2969]
[1757705233406,0.8559,4628.9,4628.4,0.218]
[1757705233703,0.8559,4628.9,4628.5,0.2969]
[1757705233904,0.8559,4628.9,4628.4,0.218]
[1757705234105,0.288,4628.8,4628.6,0.2969]
[1757705234298,0.6859,4628.7,4628.6,0.2969]
[1757705234498,0.3979,4628.7,4628.6,0.7011]
[1757705234896,0.6859,4628.7,4628.6,0.7011]
[1757705236202,0.3979,4628.7,4628.6,0.7011]
[1757705236399,0.6859,4628.7,4628.6,0.7011]
[1757705236997,0.6859,4628.7,4628.6,0.2969]
[1757705237200,0.3979,4628.7,4628.4,0.5149]
[1757705237504,0.6859,4628.5,4628.4,0.4172]
[1757705238008,0.6859,4628.5,4628.4,0.7141]
[1757705239597,0.6859,4628.5,4628.4,0.218]
[1757705239793,0.6859,4628.5,4628.4,0.5149]
[1757705240205,0.6859,4628.5,4628.4,0.7141]
[1757705240407,0.288,4628.4,4627.6,0.2969]
[1757705240598,0.1991,4627.7,4627.6,0.7011]
[1757705241004,0.6859,4627.7,4627.6,0.7011]
[1757705242606,0.3979,4627.7,4627.6,0.7011]
[1757705243208,0.6859,4627.7,4627.6,0.7011]
[1757705243404,0.1991,4627.7,4627.6,0.7011]
[1757705243608,0.3979,4627.7,4627.6,0.7011]
[1757705244200,0.1991,4627.7,4627.6,0.7011]
[1757705244399,0.288,4628.0,4627.7,0.2969]
[1757705244600,0.6859,4628.0,4627.9,0.7011]
[1757705246700,0.4871,4628.8,4628.7,0.1992]
[1757705246910,1.32373021,4628.8,4628.7,0.6999]
[1757705247106,1.32373021,4628.8,4628.7,0.4949]
[1757705247709,1.32373021,4628.8,4628.7,0.6995]
[1757705248412,1.03573021,4628.8,4628.7,0.6995]
[1757705248807,1.33273021,4628.8,4628.7,0.6995]
[1757705249312,1.03573021,4628.8,4628.7,0.6995]
[1757705249813,1.33273021,4628.8,4628.7,0.4949]
[1757705250207,1.33273021,4628.8,4628.7,0.6995]
[1757705250609,1.33273021,4628.8,4628.7,0.4949]
[1757705253512,1.03573021,4628.8,4628.7,0.6995]
[1757705253810,0.83253021,4628.8,4628.7,0.6995]
[1757705254808,0.17,4628.9,4628.8,0.2957]
[1757705255008,0.3713,4628.9,4628.8,0.7093]
[1757705256917,0.17,4628.9,4628.8,0.7093]
[1757705259725,0.8715,4628.9,4628.8,0.5047]
[1757705260019,1.50410805,4628.9,4628.8,0.5047]
[1757705260213,1.20710805,4628.9,4628.8,0.7093]
[1757705260720,1.50411071,4628.9,4628.8,0.7093]
[1757705260920,1.50411065,4628.9,4628.8,0.7093]
[1757705261316,1.50411746,4628.9,4628.8,0.7093]
[1757705262624,1.50411746,4628.9,4628.8,0.5047]
[1757705262918,0.2013,4628.2,4628.1,0.6316]
[1757705263118,0.2013,4628.6,4628.5,0.5395]
[1757705263513,0.2013,4628.6,4628.5,0.8352]
[1757705264115,0.7015,4628.6,4628.5,0.8352]
[1757705264813,0.4045,4628.6,4628.5,0.8352]
[1757705266121,0.7015,4628.6,4628.5,0.5047]
[1757705267522,0.7015,4628.6,4628.5,0.8311]
[1757705270921,0.7015,4628.6,4628.5,0.2957]
[1757705272026,0.7015,4628.6,4628.0,0.1256]
[1757705272326,0.7015,4628.6,4628.1,0.3002]
[1757705272923,0.4045,4628.6,4628.1,0.3002]
[1757705273127,0.1972,4628.2,4628.1,0.6817]
[1757705273529,0.4004,4628.2,4628.1,0.6817]
[1757705273729,0.6848,4628.2,4628.1,0.6817]
[1757705274031,0.4004,4628.2,4628.1,0.6817]
[1757705274528,0.1972,4628.2,4628.1,0.6817]
[1757705275023,0.6848,4628.2,4628.1,0.6817]
[1757705278725,0.6848,4628.2,4627.9,0.218]
[1757705278928,0.6939,4627.7,4627.6,0.5001]
[1757705279430,0.6939,4627.7,4627.6,0.7022]
[1757705280328,0.6939,4627.7,4627.6,0.2963]
[1757705280523,0.4012,4627.3,4627.2,31.11]
[1757705280725,0.6939,4627.3,4627.2,31.4063]
[1757705280926,0.6939,4627.3,4627.2,0.5001]
[1757705281327,0.6939,4627.3,4627.2,0.2963]
[1757705281722,0.6939,4627.3,4627.2,0.5001]
[1757705282528,4.91001,4627.3,4626.6,0.2963]
[1757705282738,0.4012,4626.7,4626.6,0.2963]
[1757705283030,0.6939,4626.7,4626.4,0.2963]
[1757705283237,0.6939,4626.7,4626.3,0.218]
[1757705283440,0.2927,4625.8,4625.0,0.4213]
[1757705283736,0.6939,4625.1,4625.0,0.5001]
[1757705285328,0.2927,4625.4,4625.1,0.2963]
[1757705285528,0.6939,4625.8,4625.7,0.5001]
[1757705286031,0.4012,4625.8,4625.7,0.7022]
[1757705286232,0.1149,4626.5,4625.7,0.7022]
[1757705286441,0.197,4626.4,4626.3,0.7022]
[1757705286641,0.4012,4626.4,4626.3,0.7022]
[1757705286832,0.6939,4626.4,4626.3,0.7022]
[1757705287543,0.2927,4626.8,4626.4,0.2963]
[1757705287836,0.197,4626.5,4626.4,0.7022]
[1757705288039,0.6939,4626.5,4626.4,0.7022]
[1757705288339,0.068,4627.0,4626.1,0.2963]
[1757705288642,0.6939,4626.2,4626.1,0.5001]
[1757705288839,0.6939,4626.2,4626.1,0.7022]
[1757705289239,0.4012,4626.2,4626.1,0.7022]
[1757705289738,0.068,4627.0,4626.2,0.2963]
[1757705289947,0.6939,4626.9,4626.8,0.5001]
[1757705290840,0.2927,4626.8,4626.6,0.2963]
[1757705291042,0.4012,4626.2,4626.1,0.7022]
[1757705291743,0.197,4626.2,4626.1,0.7022]
[1757705292040,0.6939,4626.5,4626.4,0.2038]
[1757705292241,0.6939,4626.5,4626.4,0.5001]
[1757705292544,0.8088,4626.5,4626.0,0.125]
[1757705292751,0.6939,4626.2,4626.1,0.2963]
[1757705292936,0.6939,4626.2,4626.1,0.5001]
[1757705294341,4.6939,4626.2,4625.1,0.2963]
[1757705294536,0.6939,4626.2,4625.1,0.2963]
[1757705294843,0.4012,4624.7,4624.6,0.7022]
[1757705295231,0.6939,4624.7,4624.6,0.5001]
[1757705295542,0.6939,4624.7,4624.1,0.2963]
[1757705295736,0.6939,4624.7,4624.6,0.5001]
[1757705296133,0.6939,4624.7,4624.6,0.2963]
[1757705296345,0.6939,4624.7,4624.1,0.2963]
[1757705297038,0.197,4624.7,4624.6,0.4059]
[1757705297350,0.0648,4624.9,4624.8,0.7022]
[1757705302140,0.2927,4625.8,4624.8,0.7022]
[1757705302340,0.2927,4625.8,4624.9,0.2963]
[1757705302546,0.197,4625.2,4625.1,0.7022]
[1757705304242,0.4012,4625.2,4625.1,0.7022]
[1757705304543,0.6939,4625.2,4625.1,0.7022]
[1757705305854,0.4012,4625.2,4625.1,0.7022]
[1757705306145,0.0648,4625.4,4625.2,0.2963]
[1757705306346,0.0648,4625.4,4625.3,0.7022]
[1757705308038,0.2672,4625.4,4625.3,0.7022]
[1757705308243,0.0648,4625.4,4625.3,0.7022]
[1757705309551,0.2672,4625.4,4625.3,0.7022]
[1757705310450,0.0648,4625.4,4625.3,0.7022]
[1757705312546,0.69674142,4625.4,4625.3,0.7022]
[1757705314548,0.89914142,4625.4,4625.3,0.7022]
[1757705316442,1.40464142,4625.4,4625.3,0.7022]
[1757705318147,0.2983,4627.6,4625.5,0.1214]
[1757705318348,0.2024,4628.0,4627.9,0.4014]
[1757705318551,0.2024,4628.0,4627.9,0.7097]
[1757705318748,1.04310218,4628.0,4627.9,0.7097]
[1757705318949,1.34140218,4628.0,4627.9,0.7097]
[1757705320351,1.04310218,4628.0,4627.6,0.3083]
[1757705320647,0.7079,4627.7,4627.6,0.5159]
[1757705320852,1.34140218,4627.7,4627.1,0.3083]
[1757705321050,0.63350218,4627.6,4627.5,0.1214]
[1757705321256,0.83590218,4627.6,4627.5,0.8311]
[1757705321454,0.4096,4627.6,4627.5,0.8311]
[1757705321757,0.7079,4627.6,4627.5,0.5159]
[1757705321951,1.03690895,4627.6,4627.0,0.1214]
[1757705322247,0.7079,4627.6,4627.5,0.5159]
[1757705323053,0.4096,4627.6,4627.5,0.8311]
[1757705323349,0.7079,4628.4,4628.3,0.2076]
[1757705323653,1.55077258,4628.4,4628.3,0.5159]
[1757705323854,1.33469258,4628.4,4628.3,0.2076]
[1757705324250,1.33469258,4628.4,4628.3,0.5159]